[Event "Titled Tuesday Blitz April 18 Late 2023"]
[White "Tyagi, Kushan"]
[Black "Li, William"]
[WhiteFideId "2040069"]
[BlackFideId "2619750"]
[WhiteElo "2286"]
[BlackElo "2070"]
[Result "0-1"]
[Round "03"]
[TimeControl "180+2"]
[Date "2023.04.18"]
[WhiteClock "0:00:10"]
[BlackClock "0:00:34"]

1. d4 {[%clk 0:02:48]}  Nf6 {[%clk 0:02:58]} 2. c4 {[%clk 0:02:47]}  b6 {[%clk 0:02:58]} 3. Nc3 {[%clk 0:02:46]}  Bb7 {[%clk 0:02:59]} 4. f3 {[%clk 0:02:46]}  d5 {[%clk 0:02:59]} 5. cxd5 {[%clk 0:02:46]}  Nxd5 {[%clk 0:03:00]} 6. e3 {[%clk 0:02:46]}  Nxc3 {[%clk 0:03:01]} 7. bxc3 {[%clk 0:02:46]}  e6 {[%clk 0:03:01]} 8. Bd3 {[%clk 0:02:45]}  Be7 {[%clk 0:02:53]} 9. Ne2 {[%clk 0:02:45]}  O-O {[%clk 0:02:53]} 10. O-O {[%clk 0:02:45]}  c5 {[%clk 0:02:53]} 11. a4 {[%clk 0:02:44]}  a6 {[%clk 0:02:52]} 12. Ba3 {[%clk 0:02:40]}  Nc6 {[%clk 0:02:49]} 13. Rb1 {[%clk 0:02:37]}  b5 {[%clk 0:02:42]} 14. axb5 {[%clk 0:02:31]}  axb5 {[%clk 0:02:43]} 15. Rxb5 {[%clk 0:02:16]}  Ba6 {[%clk 0:02:43]} 16. Bxc5 {[%clk 0:02:13]}  Bxb5 {[%clk 0:02:42]} 17. Bxe7 {[%clk 0:02:11]}  Nxe7 {[%clk 0:02:26]} 18. Bxb5 {[%clk 0:02:10]}  Nd5 {[%clk 0:02:24]} 19. Qd3 {[%clk 0:02:07]}  Ra3 {[%clk 0:02:06]} 20. e4 {[%clk 0:02:07]}  Nxc3 {[%clk 0:02:01]} 21. Nxc3 {[%clk 0:02:04]}  Qa5 {[%clk 0:02:01]} 22. Rc1 {[%clk 0:01:56]}  Rc8 {[%clk 0:02:02]} 23. Bc4 {[%clk 0:01:39]}  Qc7 {[%clk 0:01:31]} 24. Nb5 {[%clk 0:01:23]}  Rxd3 {[%clk 0:01:29]} 25. Nxc7 {[%clk 0:01:23]}  Rxc7 {[%clk 0:01:30]} 26. Bxd3 {[%clk 0:01:20]}  Rxc1+ {[%clk 0:01:31]} 27. Kf2 {[%clk 0:01:19]}  f6 {[%clk 0:01:30]} 28. d5 {[%clk 0:01:12]}  e5 {[%clk 0:01:30]} 29. Bb5 {[%clk 0:01:08]}  Kf7 {[%clk 0:01:28]} 30. Bd7 {[%clk 0:00:46]}  Ke7 {[%clk 0:01:27]} 31. Be6 {[%clk 0:00:45]}  Kd6 {[%clk 0:01:28]} 32. Kg3 {[%clk 0:00:45]}  Rc2 {[%clk 0:01:27]} 33. h3 {[%clk 0:00:44]}  g5 {[%clk 0:01:25]} 34. Kh2 {[%clk 0:00:39]}  h5 {[%clk 0:01:25]} 35. Bf7 {[%clk 0:00:36]}  h4 {[%clk 0:01:25]} 36. Be6 {[%clk 0:00:37]}  Rd2 {[%clk 0:01:25]} 37. Bf7 {[%clk 0:00:34]}  Kc5 {[%clk 0:01:26]} 38. Be6 {[%clk 0:00:30]}  Kd4 {[%clk 0:01:27]} 39. d6 {[%clk 0:00:29]}  Ke3 {[%clk 0:01:12]} 40. d7 {[%clk 0:00:29]}  Kf2 {[%clk 0:01:12]} 41. Bg4 {[%clk 0:00:23]}  Kf1 {[%clk 0:01:09]} 42. Kh1 {[%clk 0:00:21]}  Kf2 {[%clk 0:01:01]} 43. Kh2 {[%clk 0:00:21]}  Rd1 {[%clk 0:00:49]} 44. Bf5 {[%clk 0:00:19]}  Ke3 {[%clk 0:00:40]} 45. Bg4 {[%clk 0:00:18]}  Rd4 {[%clk 0:00:40]} 46. Bf5 {[%clk 0:00:18]}  Kd2 {[%clk 0:00:39]} 47. Bg4 {[%clk 0:00:17]}  Kc3 {[%clk 0:00:39]} 48. Bf5 {[%clk 0:00:16]}  Rd1 {[%clk 0:00:33]} 49. Bg4 {[%clk 0:00:16]}  Kc4 {[%clk 0:00:32]} 50. Bf5 {[%clk 0:00:16]}  Kc5 {[%clk 0:00:33]} 51. Bg4 {[%clk 0:00:16]}  Kc6 {[%clk 0:00:33]} 52. Bf5 {[%clk 0:00:16]}  Rxd7 {[%clk 0:00:28]} 53. Bxd7+ {[%clk 0:00:17]}  Kxd7 {[%clk 0:00:29]} 54. g3 {[%clk 0:00:16]}  Kd6 {[%clk 0:00:29]} 55. gxh4 {[%clk 0:00:16]}  gxh4 {[%clk 0:00:30]} 56. Kg2 {[%clk 0:00:16]}  Kc5 {[%clk 0:00:31]} 57. Kf2 {[%clk 0:00:16]}  Kd4 {[%clk 0:00:30]} 58. Ke2 {[%clk 0:00:16]}  Kc3 {[%clk 0:00:31]} 59. Ke3 {[%clk 0:00:16]}  Kc4 {[%clk 0:00:31]} 60. f4 {[%clk 0:00:16]}  Kc3 {[%clk 0:00:31]} 61. fxe5 {[%clk 0:00:12]}  fxe5 {[%clk 0:00:32]} 62. Kf3 {[%clk 0:00:12]}  Kd3 {[%clk 0:00:32]} 63. Kg4 {[%clk 0:00:12]}  Kxe4 {[%clk 0:00:32]} 64. Kxh4 {[%clk 0:00:13]}  Kf4 {[%clk 0:00:33]} 65. Kh5 {[%clk 0:00:13]}  e4 {[%clk 0:00:34]} 66. h4 {[%clk 0:00:13]}  e3 {[%clk 0:00:35]} 67. Kg6 {[%clk 0:00:13]}  e2 {[%clk 0:00:36]} 68. h5 {[%clk 0:00:14]}  e1=Q {[%clk 0:00:37]} 69. h6 {[%clk 0:00:14]}  Qe5 {[%clk 0:00:34]} 70. Kh7 {[%clk 0:00:12]}  Kg5 {[%clk 0:00:34]} 71. Kg8 {[%clk 0:00:11]}  Kg6 {[%clk 0:00:34]} 72. h7 {[%clk 0:00:11]}  Qe6+ {[%clk 0:00:33]} 73. Kh8 {[%clk 0:00:10]}  Qf6+ {[%clk 0:00:33]} 74. Kg8 {[%clk 0:00:10]}  Qf7+ {[%clk 0:00:34]} 75. Kh8 {[%clk 0:00:10]}  Qg7# {[%clk 0:00:34]} 0-1


[Site "https://www.chess.com"]

[Event "Titled Tuesday Blitz April 18 Late 2023"]
[White "Jaskolka, Tomasz"]
[Black "Nemsko"]
[WhiteFideId "1170791"]
[WhiteElo "2155"]
[BlackElo "2279"]
[Result "0-1"]
[Round "03"]
[TimeControl "180+2"]
[Date "2023.04.18"]
[WhiteClock "0:00:05"]
[BlackClock "0:00:06"]

1. d4 {[%clk 0:02:53]}  Nf6 {[%clk 0:02:59]} 2. Bf4 {[%clk 0:02:50]}  d5 {[%clk 0:02:58]} 3. e3 {[%clk 0:02:50]}  e6 {[%clk 0:02:58]} 4. c3 {[%clk 0:02:51]}  Bd6 {[%clk 0:02:58]} 5. Bg3 {[%clk 0:02:51]}  Qe7 {[%clk 0:02:56]} 6. Nd2 {[%clk 0:02:51]}  Nbd7 {[%clk 0:02:56]} 7. Ngf3 {[%clk 0:02:52]}  e5 {[%clk 0:02:48]} 8. dxe5 {[%clk 0:02:52]}  Nxe5 {[%clk 0:02:49]} 9. Nxe5 {[%clk 0:02:53]}  Bxe5 {[%clk 0:02:50]} 10. Nf3 {[%clk 0:02:53]}  Bd6 {[%clk 0:02:46]} 11. Bd3 {[%clk 0:02:51]}  O-O {[%clk 0:02:43]} 12. Bh4 {[%clk 0:02:43]}  h6 {[%clk 0:02:37]} 13. Bc2 {[%clk 0:02:43]}  Qe6 {[%clk 0:02:20]} 14. Bxf6 {[%clk 0:02:31]}  Qxf6 {[%clk 0:02:20]} 15. Qd3 {[%clk 0:02:32]}  g6 {[%clk 0:02:19]} 16. Qxd5 {[%clk 0:02:31]}  Be6 {[%clk 0:02:11]} 17. Qd4 {[%clk 0:02:30]}  Qe7 {[%clk 0:02:03]} 18. O-O {[%clk 0:02:24]}  Rfd8 {[%clk 0:02:03]} 19. Qe4 {[%clk 0:02:11]}  Qf6 {[%clk 0:01:59]} 20. Qh4 {[%clk 0:02:01]}  Qg7 {[%clk 0:01:42]} 21. Rad1 {[%clk 0:01:59]}  Bxa2 {[%clk 0:01:19]} 22. Rd4 {[%clk 0:01:52]}  Be6 {[%clk 0:01:15]} 23. Rfd1 {[%clk 0:01:52]}  Re8 {[%clk 0:01:12]} 24. Nd2 {[%clk 0:01:27]}  Be7 {[%clk 0:01:02]} 25. Qg3 {[%clk 0:01:27]}  Bd6 {[%clk 0:01:00]} 26. Qh4 {[%clk 0:01:27]}  Be7 {[%clk 0:00:59]} 27. Qg3 {[%clk 0:01:27]}  c5 {[%clk 0:00:52]} 28. Ra4 {[%clk 0:01:20]}  Red8 {[%clk 0:00:41]} 29. Ne4 {[%clk 0:01:18]}  Rxd1+ {[%clk 0:00:38]} 30. Bxd1 {[%clk 0:01:18]}  Rd8 {[%clk 0:00:36]} 31. Ra1 {[%clk 0:01:14]}  Bd5 {[%clk 0:00:29]} 32. Qc7 {[%clk 0:01:10]}  Qf8 {[%clk 0:00:20]} 33. Bf3 {[%clk 0:01:03]}  Rc8 {[%clk 0:00:14]} 34. Qe5 {[%clk 0:01:00]}  Bxe4 {[%clk 0:00:13]} 35. Qxe4 {[%clk 0:01:00]}  Rc6 {[%clk 0:00:06]} 36. Rxa7 {[%clk 0:00:55]}  Qb8 {[%clk 0:00:03]} 37. Ra1 {[%clk 0:00:38]}  Re6 {[%clk 0:00:03]} 38. Qc4 {[%clk 0:00:33]}  Qc7 {[%clk 0:00:02]} 39. g3 {[%clk 0:00:33]}  Rb6 {[%clk 0:00:02]} 40. b3 {[%clk 0:00:32]}  Rd6 {[%clk 0:00:01]} 41. Bd5 {[%clk 0:00:31]}  Bf6 {[%clk 0:00:01]} 42. Qe4 {[%clk 0:00:29]}  Kg7 {[%clk 0:00:01]} 43. Rc1 {[%clk 0:00:28]}  b5 {[%clk 0:00:01]} 44. c4 {[%clk 0:00:28]}  b4 {[%clk 0:00:01]} 45. Kg2 {[%clk 0:00:26]}  Ra6 {[%clk 0:00:02]} 46. Rd1 {[%clk 0:00:20]}  Ra3 {[%clk 0:00:02]} 47. Qd3 {[%clk 0:00:20]}  Qe7 {[%clk 0:00:02]} 48. h4 {[%clk 0:00:20]}  h5 {[%clk 0:00:02]} 49. Qc2 {[%clk 0:00:19]}  Ra7 {[%clk 0:00:02]} 50. Re1 {[%clk 0:00:17]}  Rd7 {[%clk 0:00:02]} 51. e4 {[%clk 0:00:18]}  Qe5 {[%clk 0:00:02]} 52. f4 {[%clk 0:00:18]}  Qc3 {[%clk 0:00:03]} 53. Qxc3 {[%clk 0:00:18]}  Bxc3 {[%clk 0:00:04]} 54. Rd1 {[%clk 0:00:18]}  Ra7 {[%clk 0:00:04]} 55. Kf3 {[%clk 0:00:18]}  Ra2 {[%clk 0:00:05]} 56. e5 {[%clk 0:00:18]}  Bd4 {[%clk 0:00:05]} 57. e6 {[%clk 0:00:15]}  Rf2+ {[%clk 0:00:05]} 58. Ke4 {[%clk 0:00:14]}  Re2+ {[%clk 0:00:05]} 59. Kf3 {[%clk 0:00:14]}  Re3+ {[%clk 0:00:05]} 60. Kg2 {[%clk 0:00:15]}  fxe6 {[%clk 0:00:06]} 61. Bf3 {[%clk 0:00:11]}  Kf6 {[%clk 0:00:06]} 62. Rb1 {[%clk 0:00:10]}  Rc3 {[%clk 0:00:07]} 63. Bc6 {[%clk 0:00:10]}  Rc2+ {[%clk 0:00:07]} 64. Kf3 {[%clk 0:00:11]}  Rc3+ {[%clk 0:00:07]} 65. Kg2 {[%clk 0:00:11]}  Rc2+ {[%clk 0:00:06]} 66. Kf3 {[%clk 0:00:11]}  Rf2+ {[%clk 0:00:07]} 67. Ke4 {[%clk 0:00:10]}  Rg2 {[%clk 0:00:06]} 68. Re1 {[%clk 0:00:06]}  Rxg3 {[%clk 0:00:07]} 69. Bd7 {[%clk 0:00:06]}  Rxb3 {[%clk 0:00:06]} 70. f5 {[%clk 0:00:04]}  gxf5+ {[%clk 0:00:05]} 71. Kf4 {[%clk 0:00:05]}  e5+ {[%clk 0:00:06]} 72. Rxe5 {[%clk 0:00:05]}  Bxe5# {[%clk 0:00:06]} 0-1


[Site "https://www.chess.com"]

[Event "Titled Tuesday Blitz April 18 Late 2023"]
[White "Sliwicki, Damian"]
[Black "Simonovic, Miroslav"]
[WhiteFideId "1127128"]
[BlackFideId "919152"]
[WhiteElo "2030"]
[BlackElo "2042"]
[Result "1-0"]
[Round "03"]
[TimeControl "180+2"]
[Date "2023.04.18"]
[WhiteClock "0:00:34"]
[BlackClock "0:00:02"]

1. d4 {[%clk 0:03:00]}  Nf6 {[%clk 0:02:59]} 2. Nc3 {[%clk 0:02:58]}  c5 {[%clk 0:03:00]} 3. dxc5 {[%clk 0:02:54]}  e6 {[%clk 0:03:00]} 4. e4 {[%clk 0:02:51]}  Bxc5 {[%clk 0:02:54]} 5. Bd3 {[%clk 0:02:42]}  Nc6 {[%clk 0:02:42]} 6. Nf3 {[%clk 0:02:42]}  O-O {[%clk 0:02:02]} 7. O-O {[%clk 0:02:41]}  d6 {[%clk 0:01:57]} 8. Qe2 {[%clk 0:02:34]}  Nd4 {[%clk 0:01:53]} 9. Nxd4 {[%clk 0:02:23]}  Bxd4 {[%clk 0:01:54]} 10. Bf4 {[%clk 0:02:22]}  e5 {[%clk 0:01:50]} 11. Bg5 {[%clk 0:02:11]}  h6 {[%clk 0:01:48]} 12. Bxf6 {[%clk 0:02:10]}  Qxf6 {[%clk 0:01:48]} 13. Nd5 {[%clk 0:02:11]}  Qg5 {[%clk 0:01:41]} 14. c3 {[%clk 0:02:08]}  Bg4 {[%clk 0:01:38]} 15. Qc2 {[%clk 0:01:54]}  Bh3 {[%clk 0:01:33]} 16. g3 {[%clk 0:01:42]}  Bxf1 {[%clk 0:01:32]} 17. Bxf1 {[%clk 0:01:43]}  Bb6 {[%clk 0:01:24]} 18. Rd1 {[%clk 0:01:38]}  f5 {[%clk 0:01:18]} 19. exf5 {[%clk 0:01:31]}  Kh8 {[%clk 0:01:00]} 20. Bd3 {[%clk 0:01:26]}  Rae8 {[%clk 0:00:58]} 21. Be4 {[%clk 0:01:26]}  g6 {[%clk 0:00:52]} 22. f6 {[%clk 0:01:09]}  Rxf6 {[%clk 0:00:48]} 23. Nxf6 {[%clk 0:01:05]}  Qxf6 {[%clk 0:00:49]} 24. Bxg6 {[%clk 0:01:04]}  Rf8 {[%clk 0:00:32]} 25. Rf1 {[%clk 0:01:03]}  Kg7 {[%clk 0:00:23]} 26. Be4 {[%clk 0:01:00]}  Rf7 {[%clk 0:00:22]} 27. Kg2 {[%clk 0:01:00]}  Qe6 {[%clk 0:00:19]} 28. c4 {[%clk 0:00:53]}  Bd4 {[%clk 0:00:18]} 29. Bd5 {[%clk 0:00:53]}  Qf6 {[%clk 0:00:17]} 30. Bxf7 {[%clk 0:00:53]}  Qxf7 {[%clk 0:00:18]} 31. f4 {[%clk 0:00:50]}  Qc7 {[%clk 0:00:15]} 32. Qe4 {[%clk 0:00:41]}  Qxc4 {[%clk 0:00:13]} 33. fxe5 {[%clk 0:00:41]}  dxe5 {[%clk 0:00:07]} 34. Qxb7+ {[%clk 0:00:35]}  Kg6 {[%clk 0:00:07]} 35. Qe4+ {[%clk 0:00:35]}  Kg7 {[%clk 0:00:07]} 36. Qg4+ {[%clk 0:00:34]}  Kh7 {[%clk 0:00:02]} 37. Qd7+ {[%clk 0:00:34]}  Kg6 {[%clk 0:00:02]} 38. Qf5+ {[%clk 0:00:34]}  Kg7 {[%clk 0:00:02]} 39. Qf8+ {[%clk 0:00:34]}  Kg6 {[%clk 0:00:02]} 40. Rf6+ {[%clk 0:00:32]}  Kg5 {[%clk 0:00:02]} 41. Qxh6+ {[%clk 0:00:33]}  Kg4 {[%clk 0:00:02]} 42. h3# {[%clk 0:00:34]} 1-0


[Site "https://www.chess.com"]

[Event "Titled Tuesday Blitz April 18 Late 2023"]
[White "Estremera Panos, Sergio"]
[Black "Mikheev, Stanislav"]
[WhiteFideId "2200864"]
[BlackFideId "4135920"]
[WhiteElo "2253"]
[BlackElo "2230"]
[Result "1-0"]
[Round "03"]
[TimeControl "180+2"]
[Date "2023.04.18"]
[WhiteClock "0:00:59"]
[BlackClock "0:00:24"]

1. d4 {[%clk 0:02:38]}  Nf6 {[%clk 0:02:40]} 2. c4 {[%clk 0:02:38]}  c5 {[%clk 0:02:40]} 3. d5 {[%clk 0:02:38]}  b5 {[%clk 0:02:40]} 4. cxb5 {[%clk 0:02:38]}  a6 {[%clk 0:02:41]} 5. e3 {[%clk 0:02:38]}  axb5 {[%clk 0:02:39]} 6. Bxb5 {[%clk 0:02:39]}  Qa5+ {[%clk 0:02:38]} 7. Nc3 {[%clk 0:02:40]}  Bb7 {[%clk 0:02:38]} 8. Bd2 {[%clk 0:02:40]}  Qb6 {[%clk 0:02:38]} 9. a4 {[%clk 0:02:38]}  Nxd5 {[%clk 0:02:29]} 10. Nf3 {[%clk 0:02:37]}  e6 {[%clk 0:02:22]} 11. e4 {[%clk 0:02:36]}  Nb4 {[%clk 0:02:20]} 12. O-O {[%clk 0:02:31]}  Be7 {[%clk 0:02:19]} 13. Qe2 {[%clk 0:02:19]}  N8c6 {[%clk 0:02:12]} 14. Rfd1 {[%clk 0:02:14]}  Nd4 {[%clk 0:02:04]} 15. Nxd4 {[%clk 0:01:59]}  cxd4 {[%clk 0:02:04]} 16. Na2 {[%clk 0:01:57]}  Nc6 {[%clk 0:01:29]} 17. Nc1 {[%clk 0:01:44]}  O-O {[%clk 0:01:28]} 18. Nd3 {[%clk 0:01:44]}  f5 {[%clk 0:01:24]} 19. exf5 {[%clk 0:01:42]}  Rxf5 {[%clk 0:01:24]} 20. Bf4 {[%clk 0:01:36]}  Raf8 {[%clk 0:01:16]} 21. Bg3 {[%clk 0:01:36]}  Nb4 {[%clk 0:00:44]} 22. Nxb4 {[%clk 0:01:35]}  Bxb4 {[%clk 0:00:45]} 23. Bd3 {[%clk 0:01:31]}  R5f7 {[%clk 0:00:42]} 24. a5 {[%clk 0:01:19]}  Qc6 {[%clk 0:00:40]} 25. f3 {[%clk 0:01:16]}  Ra8 {[%clk 0:00:30]} 26. a6 {[%clk 0:01:14]}  Bc8 {[%clk 0:00:28]} 27. Rdc1 {[%clk 0:01:04]}  Qd5 {[%clk 0:00:25]} 28. Be4 {[%clk 0:01:02]}  d3 {[%clk 0:00:23]} 29. Bxd5 {[%clk 0:00:59]}  dxe2 {[%clk 0:00:24]} 30. Bxa8 {[%clk 0:00:59]} 1-0


[Site "https://www.chess.com"]

[Event "Titled Tuesday Blitz April 18 Late 2023"]
[White "Romero Ruscalleda, Josep"]
[Black "Golubev, Mikhail"]
[WhiteFideId "2231859"]
[BlackFideId "14100983"]
[WhiteElo "2183"]
[BlackElo "2374"]
[Result "1-0"]
[Round "03"]
[TimeControl "180+2"]
[Date "2023.04.18"]
[WhiteClock "0:00:57"]
[BlackClock "0:00:01"]

1. e4 {[%clk 0:03:00]}  c5 {[%clk 0:02:59]} 2. c3 {[%clk 0:03:00]}  d5 {[%clk 0:02:58]} 3. exd5 {[%clk 0:03:00]}  Nf6 {[%clk 0:02:57]} 4. Nf3 {[%clk 0:02:59]}  Nxd5 {[%clk 0:02:55]} 5. Bc4 {[%clk 0:02:59]}  e6 {[%clk 0:02:48]} 6. O-O {[%clk 0:02:58]}  Be7 {[%clk 0:02:37]} 7. d4 {[%clk 0:02:57]}  Nb6 {[%clk 0:02:00]} 8. Bd3 {[%clk 0:02:49]}  cxd4 {[%clk 0:01:40]} 9. Nxd4 {[%clk 0:02:49]}  e5 {[%clk 0:01:21]} 10. Nf5 {[%clk 0:02:41]}  Bxf5 {[%clk 0:01:18]} 11. Bxf5 {[%clk 0:02:41]}  Qc7 {[%clk 0:01:05]} 12. Nd2 {[%clk 0:02:24]}  O-O {[%clk 0:01:01]} 13. Qe2 {[%clk 0:02:19]}  g6 {[%clk 0:00:47]} 14. Bc2 {[%clk 0:02:17]}  Nc6 {[%clk 0:00:36]} 15. Nf3 {[%clk 0:02:11]}  f5 {[%clk 0:00:28]} 16. Ng5 {[%clk 0:02:05]}  Bxg5 {[%clk 0:00:16]} 17. Bxg5 {[%clk 0:02:04]}  Kg7 {[%clk 0:00:13]} 18. Rfe1 {[%clk 0:01:59]}  f4 {[%clk 0:00:10]} 19. f3 {[%clk 0:01:53]}  Rae8 {[%clk 0:00:05]} 20. Rad1 {[%clk 0:01:47]}  Nd7 {[%clk 0:00:04]} 21. Bh4 {[%clk 0:01:41]}  Nf6 {[%clk 0:00:04]} 22. Bf2 {[%clk 0:01:40]}  a6 {[%clk 0:00:03]} 23. Bc5 {[%clk 0:01:38]}  Rd8 {[%clk 0:00:02]} 24. Bxf8+ {[%clk 0:01:36]}  Rxf8 {[%clk 0:00:03]} 25. Kh1 {[%clk 0:01:32]}  Rg8 {[%clk 0:00:01]} 26. Qc4 {[%clk 0:01:30]}  Rf8 {[%clk 0:00:01]} 27. Ba4 {[%clk 0:01:26]}  b5 {[%clk 0:00:01]} 28. Bxb5 {[%clk 0:01:26]}  axb5 {[%clk 0:00:01]} 29. Qxb5 {[%clk 0:01:23]}  Rb8 {[%clk 0:00:02]} 30. Qc5 {[%clk 0:01:20]}  Rxb2 {[%clk 0:00:01]} 31. Rd6 {[%clk 0:01:19]}  Rb6 {[%clk 0:00:01]} 32. h4 {[%clk 0:01:17]}  Qb7 {[%clk 0:00:01]} 33. Kh2 {[%clk 0:01:10]}  Ra6 {[%clk 0:00:01]} 34. Red1 {[%clk 0:01:04]}  Qc8 {[%clk 0:00:01]} 35. Qc4 {[%clk 0:01:00]}  h6 {[%clk 0:00:01]} 36. a4 {[%clk 0:00:57]} 1-0


[Site "https://www.chess.com"]

[Event "Titled Tuesday Blitz April 18 Late 2023"]
[White "Estrada Nieto, Julian"]
[Black "Sariego Figueredo, Wilfredo"]
[WhiteFideId "5101018"]
[BlackFideId "3500080"]
[WhiteElo "2161"]
[BlackElo "2309"]
[Result "1-0"]
[Round "03"]
[TimeControl "180+2"]
[Date "2023.04.18"]
[WhiteClock "0:00:19"]
[BlackClock "0:00:05"]

1. e4 {[%clk 0:03:00]}  c5 {[%clk 0:02:59]} 2. Nf3 {[%clk 0:03:01]}  a6 {[%clk 0:02:59]} 3. c3 {[%clk 0:03:00]}  d5 {[%clk 0:02:59]} 4. exd5 {[%clk 0:02:50]}  Qxd5 {[%clk 0:02:59]} 5. d4 {[%clk 0:02:51]}  e6 {[%clk 0:02:58]} 6. Be3 {[%clk 0:02:50]}  cxd4 {[%clk 0:02:58]} 7. cxd4 {[%clk 0:02:50]}  Nf6 {[%clk 0:02:58]} 8. Nc3 {[%clk 0:02:51]}  Qd6 {[%clk 0:02:58]} 9. Bd3 {[%clk 0:02:49]}  Nc6 {[%clk 0:02:57]} 10. O-O {[%clk 0:02:49]}  Be7 {[%clk 0:02:57]} 11. a3 {[%clk 0:02:44]}  O-O {[%clk 0:02:55]} 12. Qe2 {[%clk 0:02:44]}  b5 {[%clk 0:02:53]} 13. Rfd1 {[%clk 0:02:38]}  Bb7 {[%clk 0:02:52]} 14. Bg5 {[%clk 0:02:37]}  Rfd8 {[%clk 0:02:31]} 15. Ne4 {[%clk 0:02:28]}  Nxe4 {[%clk 0:02:27]} 16. Qxe4 {[%clk 0:02:28]}  g6 {[%clk 0:02:27]} 17. Qh4 {[%clk 0:02:26]}  Bxg5 {[%clk 0:01:55]} 18. Nxg5 {[%clk 0:02:26]}  h5 {[%clk 0:01:54]} 19. Be4 {[%clk 0:02:06]}  Qc7 {[%clk 0:01:37]} 20. Rac1 {[%clk 0:01:44]}  Qb6 {[%clk 0:01:25]} 21. d5 {[%clk 0:01:38]}  exd5 {[%clk 0:01:20]} 22. Bxd5 {[%clk 0:01:37]}  Ne5 {[%clk 0:01:20]} 23. Bxb7 {[%clk 0:01:20]}  Qxb7 {[%clk 0:01:21]} 24. Ne4 {[%clk 0:01:18]}  Rxd1+ {[%clk 0:01:02]} 25. Rxd1 {[%clk 0:01:18]}  Qc6 {[%clk 0:00:53]} 26. h3 {[%clk 0:01:00]}  Kg7 {[%clk 0:00:47]} 27. Rd6 {[%clk 0:00:49]}  Qc1+ {[%clk 0:00:29]} 28. Kh2 {[%clk 0:00:49]}  Ng4+ {[%clk 0:00:19]} 29. hxg4 {[%clk 0:00:37]}  Qf4+ {[%clk 0:00:19]} 30. Qg3 {[%clk 0:00:36]}  Qxe4 {[%clk 0:00:19]} 31. Qc3+ {[%clk 0:00:34]}  Kh7 {[%clk 0:00:18]} 32. Qf6 {[%clk 0:00:27]}  Qxg4 {[%clk 0:00:07]} 33. Qxf7+ {[%clk 0:00:25]}  Kh6 {[%clk 0:00:07]} 34. Rd7 {[%clk 0:00:20]}  Qh4+ {[%clk 0:00:07]} 35. Kg1 {[%clk 0:00:21]}  Rc8 {[%clk 0:00:04]} 36. Qg7+ {[%clk 0:00:20]}  Kg5 {[%clk 0:00:04]} 37. Qe7+ {[%clk 0:00:20]}  Kh6 {[%clk 0:00:03]} 38. Qxh4 {[%clk 0:00:19]}  Rc1+ {[%clk 0:00:04]} 39. Kh2 {[%clk 0:00:20]}  Rh1+ {[%clk 0:00:05]} 40. Kxh1 {[%clk 0:00:19]} 1-0


[Site "https://www.chess.com"]

[Event "Titled Tuesday Blitz April 18 Late 2023"]
[White "Abduzhaparov"]
[Black "Broca Jimenez, Fernando"]
[BlackFideId "5104742"]
[WhiteElo "2398"]
[BlackElo "2062"]
[Result "1-0"]
[Round "03"]
[TimeControl "180+2"]
[Date "2023.04.18"]
[WhiteClock "0:02:05"]
[BlackClock "0:01:57"]

1. Nf3 {[%clk 0:02:55]}  c5 {[%clk 0:02:59]} 2. c4 {[%clk 0:02:56]}  g6 {[%clk 0:02:59]} 3. d4 {[%clk 0:02:55]}  Bg7 {[%clk 0:03:00]} 4. e4 {[%clk 0:02:54]}  cxd4 {[%clk 0:02:57]} 5. Nxd4 {[%clk 0:02:55]}  Nc6 {[%clk 0:02:58]} 6. Be3 {[%clk 0:02:54]}  Nf6 {[%clk 0:02:57]} 7. Nc3 {[%clk 0:02:54]}  O-O {[%clk 0:02:57]} 8. Be2 {[%clk 0:02:54]}  d6 {[%clk 0:02:56]} 9. O-O {[%clk 0:02:54]}  Bd7 {[%clk 0:02:53]} 10. h3 {[%clk 0:02:54]}  Nxd4 {[%clk 0:02:53]} 11. Bxd4 {[%clk 0:02:55]}  Bc6 {[%clk 0:02:53]} 12. Qc2 {[%clk 0:02:55]}  Nd7 {[%clk 0:02:52]} 13. Bxg7 {[%clk 0:02:51]}  Kxg7 {[%clk 0:02:53]} 14. b4 {[%clk 0:02:51]}  Nf6 {[%clk 0:02:45]} 15. b5 {[%clk 0:02:47]}  Bd7 {[%clk 0:02:44]} 16. Rfd1 {[%clk 0:02:47]}  Be6 {[%clk 0:02:41]} 17. Rac1 {[%clk 0:02:45]}  Rc8 {[%clk 0:02:40]} 18. e5 {[%clk 0:02:35]}  Ne8 {[%clk 0:02:30]} 19. exd6 {[%clk 0:02:32]}  Nxd6 {[%clk 0:02:28]} 20. Ne4 {[%clk 0:02:23]}  Qb6 {[%clk 0:02:18]} 21. c5 {[%clk 0:02:08]}  Nxe4 {[%clk 0:02:02]} 22. Qb2+ {[%clk 0:02:06]}  Nf6 {[%clk 0:01:57]} 23. cxb6 {[%clk 0:02:05]} 1-0


[Site "https://www.chess.com"]

[Event "Titled Tuesday Blitz April 18 Late 2023"]
[White "Gerbelli Neto, Eduardo"]
[Black "Stanisz, Patryk"]
[WhiteFideId "2103281"]
[BlackFideId "1123106"]
[WhiteElo "2178"]
[BlackElo "2069"]
[Result "1-0"]
[Round "03"]
[TimeControl "180+2"]
[Date "2023.04.18"]
[WhiteClock "0:02:05"]
[BlackClock "0:00:13"]

1. e4 {[%clk 0:03:00]}  c5 {[%clk 0:02:56]} 2. Nc3 {[%clk 0:03:00]}  Nc6 {[%clk 0:02:56]} 3. f4 {[%clk 0:03:00]}  g6 {[%clk 0:02:56]} 4. Nf3 {[%clk 0:03:00]}  Bg7 {[%clk 0:02:56]} 5. Bc4 {[%clk 0:03:01]}  Rb8 {[%clk 0:02:56]} 6. d3 {[%clk 0:02:57]}  e6 {[%clk 0:02:55]} 7. f5 {[%clk 0:02:56]}  Nge7 {[%clk 0:02:53]} 8. fxe6 {[%clk 0:02:56]}  fxe6 {[%clk 0:02:52]} 9. Bf4 {[%clk 0:02:54]}  d6 {[%clk 0:02:49]} 10. O-O {[%clk 0:02:49]}  O-O {[%clk 0:02:49]} 11. Qd2 {[%clk 0:02:41]}  a6 {[%clk 0:02:39]} 12. a4 {[%clk 0:02:39]}  b5 {[%clk 0:02:40]} 13. axb5 {[%clk 0:02:39]}  axb5 {[%clk 0:02:41]} 14. Nxb5 {[%clk 0:02:38]}  Rxb5 {[%clk 0:01:07]} 15. Bxb5 {[%clk 0:02:36]}  Bxb2 {[%clk 0:01:08]} 16. Rab1 {[%clk 0:02:34]}  Bg7 {[%clk 0:01:07]} 17. Bh6 {[%clk 0:02:22]}  e5 {[%clk 0:00:51]} 18. Bc4+ {[%clk 0:02:19]}  Kh8 {[%clk 0:00:50]} 19. Bxg7+ {[%clk 0:02:04]}  Kxg7 {[%clk 0:00:51]} 20. Ng5 {[%clk 0:02:05]}  Rxf1+ {[%clk 0:00:41]} 21. Rxf1 {[%clk 0:02:05]}  Qb6 {[%clk 0:00:13]} 1-0


[Site "https://www.chess.com"]